{"text_format":"1","workbook":"xlsx","n_sheets":1,"sheets":["Formato permiso docentes"],"not_rendered":{"charts":0,"images":2,"macros":1,"external_links":0,"defined_names":1,"comments":2,"pivot_tables":0},"unopened":[],"bounds":{"document_bytes":16777216,"sheet_cells":100000,"rows_first":2000,"rows_last":500,"rows_between":2000,"halvings":0,"cell_chars":16384,"cell_head_chars":4096},"cells_cut":0,"cells_raw":0,"read":"whole","date_system":"1900"}

{"sheet":"Formato permiso docentes","index":0,"n_rows":58,"n_cols":10,"rows_kept":58,"cut":false,"hidden":false,"merged":[[32,0,32,9],[33,2,33,4],[33,5,33,6],[26,1,26,6],[34,2,34,4],[34,5,34,6],[31,1,31,6],[27,1,27,6],[28,1,28,6],[29,1,29,6],[30,1,30,6],[35,2,35,4],[35,5,35,6],[36,2,36,4],[36,5,36,6],[57,0,57,1],[57,2,57,9],[56,0,56,9],[50,8,50,9],[40,2,40,4],[40,5,40,6],[41,1,41,6],[42,1,42,6],[43,1,43,6],[48,1,48,6],[37,2,37,4],[38,2,38,4],[25,1,25,6],[54,0,54,3],[54,4,54,7],[54,8,54,9],[55,0,55,1],[55,2,55,9],[51,0,51,3],[51,4,51,7],[51,8,51,9],[52,0,52,9],[53,0,53,3],[53,4,53,7],[53,8,53,9],[49,0,49,9],[50,0,50,3],[50,4,50,7],[23,1,23,4],[23,5,23,6],[24,1,24,6],[17,1,17,4],[17,5,17,6],[18,1,18,4],[18,5,18,6],[19,1,19,4],[19,5,19,6],[20,1,20,4],[21,1,21,4],[22,1,22,4],[20,5,20,6],[21,5,21,6],[22,5,22,6],[12,0,12,9],[13,0,13,1],[13,2,13,6],[13,8,13,9],[16,1,16,4],[16,5,16,6],[14,0,14,1],[14,2,14,9],[15,0,15,9],[10,0,10,1],[10,2,10,9],[11,0,11,1],[11,2,11,9],[9,0,9,3],[9,4,9,9],[8,0,8,3],[8,4,8,7],[0,0,0,2],[0,3,0,9],[1,0,1,2],[1,3,1,6],[1,8,1,9],[3,7,3,8],[5,0,5,9],[6,0,6,3],[6,4,6,7],[7,0,7,3],[7,4,7,7],[2,0,4,6],[45,1,45,6],[46,1,46,6],[47,1,47,6],[39,2,39,4],[37,5,37,6],[38,5,38,6],[39,5,39,6],[44,1,44,6]]}
[null,null,null,"FORMATO SOLICITUD DE PERMISOS/LICENCIAS Y REPOSICIÓN DE HORAS ACADÉMICAS Y ADMINISTRATIVAS PARA DOCENTES "]
["Código: GH-BG-F-026",null,null,"Versión: 01",null,null,null,"Emisión: 20-10-2022","Pág 1 de 1"]
[]
[null,null,null,null,null,null,null,"Fecha de la solicitud",null,{"$f":"TODAY()","v":"2022-10-24"}]
[]
["Datos del solicitante"]
["Nombre (s) y apellido (s) del docente:",null,null,null,null,null,null,null,"Dependencia o programa:"]
["Correo electrónico:",null,null,null,null,null,null,null,"Número celular:"]
["Función o rol docente:",null,null,null,null,null,null,null,"Modalidad contrato"]
["Tipo de solicitud (Marque con una X - Consultar protocolo de permisos página web)"]
["Especificar motivo:"]
["Documentos anexos (Si aplica, relacionar los documentos que soportan el motivo del permiso o ausencia)"]
["Fecha del permiso/licencia"]
["Fecha de inicio del permiso:",null,null,null,null,null,null,"Fecha de fin del permiso:"]
["Indique el tipo de función durante su ausencia (Marque con una X)"]
["Datos de la función de ausencia según aplique"]
["No.","Espacio académico. ",null,null,null,"Grupo ",null,"Fecha de espacio académico ","Hora","Lugar"]
[1]
[2]
[3]
[4]
[5]
[6]
[7]
["No.","Función de apoyo administrativo",null,null,null,null,null,"Fecha de espacio de apoyo administrativo","Hora","Lugar"]
[1]
[2]
[3]
[4]
[5]
[6]
[7]
["Datos de la reposición de función según aplique"]
["No.","Espacio académico a reponer","Docente",null,null,"Grupo\n(Si aplica)",null,"Fecha de reposición de espacio académico","Hora","Lugar"]
[1,{"$f":"B18","v":0},null,null,null,{"$f":"F18","v":0}]
[2,{"$f":"B19","v":0},null,null,null,{"$f":"F19","v":0}]
[3,{"$f":"B20","v":0},null,null,null,0]
[4,0,null,null,null,0]
[5,0,null,null,null,0]
[6,0,null,null,null,0]
[7,0,null,null,null,0]
["No.","Función de apoyo administrativo a reponer",null,null,null,null,null,"Fecha de reposición de función de apoyo administrativo","Hora","Lugar"]
[1,{"$f":"B26","v":0}]
[2,{"$f":"B27","v":0}]
[3,0]
[4,0]
[5,0]
[6,0]
[7,0]
["Espacio diligenciado por el docente, el Decano de División o Jefe inmediato"]
["Firma digital",null,null,null,"Firma digital",null,null,null,"Firma digital"]
["Firma del docente que solicita permiso",null,null,null,"Firma del Jefe Inmediato",null,null,null,"Vo.Bo. Decano de División"]
["Espacio diligenciado por el Dpto. de Gestión del Talento Humano y por la alta dirección según corresponda"]
["Firma digital",null,null,null,"Firma digital",null,null,null,"Firma digital"]
["Firma del Dpto. de Gestión de Talento Humano",null,null,null,"Firma del Vicerrector Académico",null,null,null,"Firmar del Rector"]
["Observaciones\n"]
["Nota Importante: Consultar protocolo de permisos en pagina web\nSegún el Protocolo de Permisos y el art. 24 del Reglamento Interno de Trabajo:\n-Permisos hasta media jornada (4) horas autorización del jefe inmediato quien aprueba.\n-Permiso de más de media jornada, hasta tres (3) días, visto bueno jefe inmediato y se aprueba en Talento Humano.\n-Permisos de más de tres (3) días, visto bueno jefe inmediato, se tramita en Talento Humano, Vicerrector Académico y el Rector según el caso. "]
[null,null,"La Universidad Santo Tomás se preocupa por el Medio Ambiente. Antes de imprimir este formato piense en su compromiso con el planeta. "]